bitfinex/quotes_ETHUSD_20250404
["timestamp","ask_amount","ask_price","bid_price","bid_amount"]
[1743764909805,5.98576852,1780.3,1779.9,5.61814]
[1743764910012,5.61761,1780.2,1779.8,15.88037]
[1743764910298,5.61784,1780.1,1779.7,5.61876]
[1743764910598,5.98576852,1780.3,1779.6,1.5428]
[1743764910750,11.60295852,1780.3,1779.9,5.61829]
[1743764910956,5.61735,1780.2,1779.9,5.61829]
[1743764911573,11.60285852,1780.3,1779.8,11.23702]
[1743764911900,11.60285852,1780.3,1779.9,5.618]
[1743764912192,17.22007852,1780.3,1779.9,5.618]
[1743764912392,5.61747,1780.2,1779.9,5.61829]
[1743764913090,11.23499,1780.2,1779.9,5.61823]
[1743764913256,11.60284852,1780.3,1779.9,5.61816]
[1743764913660,5.98576852,1780.3,1780.0,5.61793]
[1743764913993,11.60290852,1780.3,1779.9,5.61824]
[1743764914396,5.61777,1780.1,1779.8,5.6184]
[1743764914595,5.98576852,1780.3,1779.7,5.61892]
[1743764914805,5.61734,1780.2,1779.9,5.61826]
[1743764914976,11.60283852,1780.3,1779.9,5.61813]
[1743764915306,5.61746,1780.2,1779.9,5.61813]
[1743764915598,5.61785,1780.1,1779.8,5.61856]
[1743764915761,0.55,1780.2,1779.8,5.61844]
[1743764915963,6.198,1780.1,1779.8,5.6185]
[1743764916266,6.198,1780.1,1779.9,5.61816]
[1743764916461,6.198,1780.1,1779.9,5.61814]
[1743764916667,11.81581,1780.1,1779.7,11.23768]
[1743764916868,17.43362,1780.1,1779.8,5.61846]
[1743764917169,11.81581,1780.1,1779.8,5.61846]
[1743764917365,6.198,1780.1,1779.9,5.61819]
[1743764917615,5.98576852,1780.3,1779.9,0.561819]
[1743764917779,5.98576852,1780.3,1780.0,1.5105]
[1743764918107,5.61744,1780.2,1779.9,9.179989]
[1743764918310,5.61771,1780.1,1779.8,5.61854]
[1743764918711,11.81544,1780.2,1779.6,5.61918]
[1743764918712,5.61832,1779.9,1779.6,5.61918]
[1743764919014,5.61832,1779.9,1779.6,3.0]
[1743764919303,5.61832,1779.9,1779.6,8.61917]
[1743764919509,11.23681,1779.9,1779.6,3.0]
[1743764919692,7.26382,1779.9,1779.5,11.2388]
[1743764920017,11.81661,1779.8,1779.5,5.61939]
[1743764920552,11.81661,1779.8,1779.4,5.61958]
[1743764920553,11.81673,1779.8,1779.4,5.61958]
[1743764920669,17.43556,1779.8,1779.4,5.61958]
[1743764921018,17.43556,1779.8,1779.3,7.27603]
[1743764921019,11.2383,1779.7,1779.3,7.27603]
[1743764921195,5.61927,1779.6,1779.3,7.27603]
[1743764921508,5.61965,1779.5,1779.2,5.62049]
[1743764921674,11.2386,1779.6,1779.2,5.62049]
[1743764921876,5.61971,1779.5,1779.1,7.26341]
[1743764922217,5.6203,1779.3,1779.1,0.05]
[1743764922418,11.81805,1779.4,1779.1,0.05]
[1743764922571,5.6202,1779.3,1779.1,0.05]
[1743764922919,5.6205,1779.2,1779.1,0.05]
[1743764923212,0.55,1779.3,1779.1,0.05]
[1743764923407,17.43797,1779.4,1779.1,0.05]
[1743764923714,17.43793,1779.4,1779.1,0.05]
[1743764923915,5.62021,1779.3,1779.1,0.05]
[1743764924116,6.198,1779.4,1779.1,5.67074]
[1743764924271,6.199,1779.3,1779.1,5.67074]
[1743764924470,8.98576852,1779.7,1779.1,5.67074]
[1743764924471,12.18476852,1779.7,1779.4,5.6197]
[1743764924696,17.80370852,1779.7,1779.3,5.62004]
[1743764925013,17.80370852,1779.7,1779.3,5.62003]
[1743764925317,5.61932,1779.6,1779.3,5.62003]
[1743764925494,11.23874,1779.6,1779.2,5.62042]
[1743764925809,17.80373852,1779.7,1779.3,5.62006]
[1743764925985,12.18476852,1779.7,1779.4,5.6197]
[1743764926185,12.18476852,1779.7,1779.3,5.62016]
[1743764926186,23.42299852,1779.7,1779.3,5.62016]
[1743764926390,5.61924,1779.6,1779.2,5.62048]
[1743764926710,5.61988,1779.4,1779.1,5.6707]
[1743764926883,11.23995,1779.4,1779.1,0.05]
[1743764927408,11.81828,1779.3,1779.1,0.05]
[1743764927571,17.43865,1779.3,1779.1,0.05]
[1743764927777,5.6205,1779.2,1779.1,0.05]
[1743764927990,6.1705,1779.2,1779.1,0.05]
[1743764928398,7.7987,1779.2,1779.1,0.05]
[1743764928601,13.78446852,1779.2,1779.1,0.05]
[1743764928808,13.78446852,1779.2,1779.0,0.01]
[1743764928809,7.74301,1779.1,1779.0,0.01]
[1743764929117,16.72877852,1779.1,1779.0,1e-05]
[1743764929354,17.15244662,1779.1,1779.0,1e-05]
[1743764929824,10.70505,1778.9,1778.8,1e-05]
[1743764930130,16.90305,1778.9,1778.8,1e-05]
[1743764931194,13.90305,1778.9,1778.8,1e-05]
[1743764932726,1.5336,1778.9,1778.8,1e-05]
[1743764933028,5.62145,1778.9,1778.8,1e-05]
[1743764933237,17.44274,1779.0,1778.8,1e-05]
[1743764933395,5.62145,1778.9,1778.8,1e-05]
[1743764933597,11.82123,1779.0,1778.8,1e-05]
[1743764934224,11.82114,1779.0,1778.8,1e-05]
[1743764934553,6.2,1779.0,1778.8,6.183898]
[1743764934705,6.2,1779.0,1778.8,1e-05]
[1743764935806,11.8213,1779.0,1778.8,1e-05]
[1743764936351,5.62145,1778.9,1778.8,1e-05]
[1743764936702,6.2,1779.0,1778.8,5.62164]
[1743764936934,6.2,1779.0,1778.9,7.19805]
[1743764937136,6.2,1779.0,1778.8,0.562174]
[1743764937335,6.2,1779.0,1778.8,6.183754]
[1743764937808,5.98576852,1779.1,1778.9,5.62145]
[1743764938008,12.18576852,1779.1,1778.8,6.183754]
[1743764938243,12.18576852,1779.1,1778.8,5.62159]
[1743764938539,5.98576852,1779.1,1778.9,0.05621239]
[1743764938704,5.98576852,1779.1,1778.9,5.62114]
[1743764938900,5.98576852,1779.1,1779.0,5.62113]
[1743764939240,5.98576852,1779.1,1778.8,1e-05]
[1743764939559,5.6213,1779.0,1778.8,1e-05]
[1743764939723,6.17145,1778.9,1778.8,1e-05]
[1743764939924,5.6213,1779.0,1778.8,1e-05]
[1743764940313,13.18812852,1779.1,1778.8,1e-05]
[1743764940513,5.62145,1778.9,1778.8,1e-05]
[1743764940720,5.62123,1779.0,1778.8,1e-05]
[1743764941044,19.35903852,1779.1,1778.8,1e-05]
[1743764941348,5.98576852,1779.1,1778.9,5.62132]
[1743764941849,6.199,1779.3,1779.2,5.6205]
[1743764942161,12.18476852,1779.5,1779.4,7.27817]
[1743764942337,6.199,1779.8,1779.7,5.61892]
[1743764942850,6.199,1779.8,1779.4,7.27806]
[1743764943168,6.199,1779.8,1779.0,6.68485108]
[1743764943169,5.61943,1779.6,1779.2,7.24565]
[1743764943370,5.61942,1779.6,1779.2,7.24565]
[1743764943578,5.98576852,1779.7,1779.6,5.61924]
[1743764943875,11.81724,1780.0,1779.6,5.61924]
[1743764944032,5.61837,1779.9,1779.5,5.61945]
[1743764944230,5.61829,1779.9,1779.2,1.6252]
[1743764944434,5.61987,1779.4,1779.2,1.6252]
[1743764944635,5.61987,1779.4,1778.9,5.62115]
[1743764944636,11.24081,1779.3,1778.9,5.62115]
[1743764944876,11.24074,1779.3,1778.9,5.62115]
[1743764945031,5.62037,1779.3,1778.9,5.62115]
[1743764945371,5.62092,1779.1,1778.8,1.52201]
[1743764945577,6.199,1779.0,1778.9,5.62145]
[1743764945778,6.199,1779.0,1778.8,7.14364]
[1743764946165,6.199,1779.0,1778.9,5.62145]
[1743764947667,12.18376852,1779.3,1779.2,5.6205]
[1743764947840,6.198,1779.4,1779.2,5.6205]
[1743764948180,6.198,1779.4,1779.3,5.62018]
[1743764948379,6.198,1779.4,1779.0,11.24211]
[1743764948579,17.43824,1779.4,1779.0,5.62102]
[1743764948883,11.81812,1779.4,1779.0,5.62102]
[1743764949085,11.81812,1779.4,1778.9,5.62139]
[1743764949086,5.62054,1779.2,1778.9,5.62139]
[1743764949288,5.62032,1779.3,1778.9,11.24268]
[1743764949484,11.8179,1779.4,1779.0,5.62098]
[1743764949691,5.62061,1779.2,1778.8,7.14375]
[1743764949884,5.62061,1779.2,1778.8,1.52201]
[1743764949885,5.62097,1779.1,1778.8,1.52201]
[1743764950090,5.62097,1779.1,1778.8,1e-05]
[1743764950298,6.198,1779.0,1778.8,5.62176]
[1743764950587,0.55,1779.3,1778.9,4.567]
[1743764950891,13.77416852,1780.0,1779.3,1.567]
[1743764951186,13.77416852,1780.0,1778.7,3.68485108]
[1743764951187,12.18276852,1779.9,1778.7,3.68485108]
[1743764951389,1.5914,1779.3,1778.8,1.56701]
[1743764951545,6.747,1779.2,1778.8,1.56701]
[1743764951748,5.62091,1779.1,1778.8,7.18876]
[1743764952183,12.36781,1779.2,1778.8,7.18866]
[1743764952367,5.62092,1779.1,1778.8,1e-05]
[1743764952680,7.75355,1778.9,1778.8,1e-05]
[1743764952990,1.5821,1778.9,1778.8,1e-05]
[1743764953198,5.62085,1779.1,1778.8,1e-05]
[1743764953377,5.62118,1779.0,1778.8,1e-05]
[1743764953553,5.62085,1779.1,1778.8,1e-05]
[1743764954054,13.39963,1779.2,1778.9,5.62134]
[1743764954382,6.198,1779.6,1779.5,5.61955]
[1743764954583,5.98576852,1779.7,1779.3,5.62014]
[1743764954759,5.98576852,1779.7,1779.3,0.562014]
[1743764955088,6.198,1779.9,1779.5,7.19485]
[1743764955260,6.198,1779.9,1779.4,5.61971]
[1743764955261,5.61884,1779.8,1779.4,5.61971]
[1743764955459,1.5774,1779.8,1779.3,1.5755]
[1743764955659,5.61927,1779.6,1779.2,5.62039]
[1743764955976,11.23872,1779.6,1779.2,5.62039]
[1743764956177,11.81658,1779.5,1779.2,5.62039]
[1743764956395,6.197,1779.5,1779.2,5.62039]
[1743764956699,11.81656,1779.5,1779.2,5.62039]
[1743764956864,5.61997,1779.4,1779.1,5.62056]
[1743764957061,12.81803,1779.3,1778.9,5.6214]
[1743764957685,6.16989,1779.4,1779.0,5.62082]
[1743764957990,13.31659,1779.5,1779.1,5.62066]
[1743764958611,18.93632,1779.5,1779.1,5.62064]
[1743764958805,5.62007,1779.4,1779.0,5.62101]
[1743764959008,11.24018,1779.4,1779.0,5.62101]
[1743764959306,6.197,1779.5,1779.2,5.62034]
[1743764959504,5.62006,1779.4,1779.1,1.5749]
[1743764959706,5.62006,1779.4,1778.8,3.00001]
[1743764959707,5.62068,1779.2,1778.8,8.62165]
[1743764960013,6.197,1779.1,1779.0,5.62113]
[1743764960510,6.197,1779.1,1778.9,5.62121]
[1743764960700,6.197,1779.1,1779.0,5.62113]
[1743764961590,6.197,1779.1,1779.0,8.278964]
[1743764962008,6.197,1779.1,1778.9,11.24251]
[1743764962205,11.818,1779.1,1778.8,1e-05]
[1743764962419,11.818,1779.1,1778.8,5.6217]
[1743764962621,17.43899,1779.1,1778.8,1e-05]
[1743764962907,11.81782,1779.1,1778.8,5.62159]
[1743764963280,11.81786,1779.1,1778.8,5.62159]
[1743764963578,11.81786,1779.1,1778.8,1e-05]
[1743764964321,17.43884,1779.1,1778.8,1e-05]
[1743764964629,6.197,1779.1,1778.9,5.62138]
[1743764964907,6.197,1779.1,1778.8,5.62167]
[1743764965609,11.81794,1779.1,1778.8,5.62174]
[1743764965995,5.62137,1779.0,1778.8,1e-05]
[1743764966307,5.62133,1779.0,1778.8,1e-05]
[1743764966674,5.6212,1779.0,1778.8,1e-05]
[1743764967108,5.62145,1778.9,1778.8,1e-05]
[1743764967527,6.17145,1778.9,1778.8,1e-05]
[1743764967823,15.15721852,1778.9,1778.8,1e-05]
[1743764967984,16.70521852,1778.9,1778.8,1e-05]
[1743764970504,17.13458738,1778.9,1778.8,1e-05]
[1743764971314,20.85766555,1778.9,1778.8,1e-05]
[1743764972986,23.33158738,1778.9,1778.8,1e-05]
[1743764973187,17.13458738,1778.9,1778.8,1e-05]
[1743764973396,19.35221852,1778.9,1778.8,1e-05]
[1743764974024,19.90221852,1778.9,1778.8,1e-05]
[1743764974227,5.98576852,1778.9,1778.8,1e-05]
[1743764974448,17.80421852,1778.9,1778.8,1e-05]
[1743764974590,12.18276852,1778.9,1778.8,1e-05]
[1743764975899,6.197,1779.5,1779.3,5.62018]
[1743764976116,6.197,1779.5,1779.3,1.6576]
[1743764976330,6.197,1779.5,1779.3,12.89769]
[1743764976516,6.197,1779.5,1779.4,5.61987]
[1743764976829,5.98576852,1779.9,1779.5,5.61955]
[1743764977132,6.197,1779.8,1779.7,5.61892]
[1743764977332,6.197,1779.8,1779.7,7.17482]
[1743764977502,6.197,1780.2,1779.9,5.618]
[1743764977698,6.197,1780.2,1780.1,5.61766]
[1743764978197,6.197,1780.2,1780.1,7.27856]
[1743764978400,5.61579,1780.7,1780.3,5.61683]
[1743764978598,5.61579,1780.7,1780.1,3.00671232]
[1743764978599,6.197,1780.6,1780.4,11.23326]
[1743764978804,6.197,1780.6,1780.5,5.61639]
[1743764978994,0.05,1780.9,1780.8,5.61545]
[1743764979797,12.18076852,1781.6,1781.5,5.61324]
[1743764980304,6.195,1781.6,1781.5,5.61324]
[1743764980499,6.195,1781.6,1781.4,5.61352]
[1743764980702,6.195,1781.6,1781.3,5.6137]
[1743764980910,6.195,1781.6,1781.4,5.6134]
[1743764981211,6.195,1781.6,1781.3,0.05613203]
[1743764981410,6.03576852,1781.9,1781.8,5.6123]
[1743764981733,0.05,1781.9,1781.8,7.1211]
[1743764982511,0.05,1781.9,1781.8,1.5088]
[1743764982711,0.05,1781.9,1781.5,8.61302]
[1743764982712,0.05,1781.9,1781.5,15.87142]
[1743764982917,0.05,1781.9,1781.5,1.6453]
[1743764983150,0.05,1781.9,1781.5,12.87138]
[1743764983359,5.66213,1781.9,1781.5,1.6453]
[1743764983664,5.61275,1781.7,1781.2,10.18564]
[1743764983871,11.80294,1781.6,1781.2,10.18564]
[1743764984014,17.78870852,1781.6,1781.2,1.5715]
[1743764984213,12.17576852,1781.6,1781.2,1.5715]
[1743764984770,0.05,1781.9,1781.5,5.61324]
[1743764984771,11.85199,1781.9,1781.5,5.61324]
[1743764984917,0.05,1781.9,1781.6,5.61279]
[1743764985118,0.05,1781.9,1781.7,1.5702]
[1743764986212,0.05,1781.9,1781.7,7.18279]
[1743764986412,0.05,1781.9,1781.7,1.5702]
[1743764986613,0.05,1781.9,1781.4,7.1484]
[1743764986814,0.05,1781.9,1781.4,2.24984]
[1743764987015,0.05,1781.9,1781.7,5.61245]
[1743764987258,0.05,1781.9,1781.4,1.535]
[1743764987468,0.05,1781.9,1781.7,11.22489]
[1743764987666,0.05,1781.9,1781.5,5.61294]
[1743764987829,0.05,1781.9,1781.5,11.22606]
[1743764988160,5.66211,1781.9,1781.5,6.889046]
[1743764988341,5.66211,1781.9,1781.4,1.535]
[1743764988342,5.61231,1781.8,1781.4,1.535]
[1743764988544,6.188,1781.7,1781.1,5.61424]
[1743764988758,11.22703,1781.5,1781.0,17.24398]
[1743764988967,11.22703,1781.5,1781.0,7.24398]
[1743764989115,5.61372,1781.4,1781.0,1.6292]
[1743764989315,6.188,1781.3,1781.0,1.6292]
[1743764989749,11.80203,1781.3,1781.0,1.6292]
[1743764989949,11.80203,1781.3,1780.9,5.61483]
[1743764990127,23.40187852,1781.3,1780.8,5.61525]
[1743764990331,17.78779852,1781.3,1780.8,6.888901]
[1743764990559,12.17376852,1781.3,1780.9,5.61508]
[1743764990761,17.78788852,1781.3,1780.8,6.888901]
[1743764990945,17.78788852,1781.3,1780.8,6.888881]
[1743764991147,17.78788852,1781.3,1780.9,5.6151]
[1743764991535,17.78788852,1781.3,1780.8,6.888881]
[1743764991723,5.61437,1781.2,1780.8,6.888881]
[1743764991924,5.61437,1781.2,1780.8,12.504101]
[1743764992160,5.61437,1781.2,1780.8,6.888871]
[1743764992363,17.78788852,1781.3,1780.8,1.273651]
[1743764992562,17.78788852,1781.3,1780.9,5.6149]
[1743764992958,5.61424,1781.2,1780.8,5.61545]
[1743764993146,5.98576852,1781.1,1780.5,5.61621]
[1743764993322,5.98576852,1781.1,1780.4,1.624]
[1743764993323,5.98576852,1781.1,1780.6,5.61598]
[1743764993524,5.98576852,1781.1,1780.8,5.61518]
[1743764994238,5.98576852,1781.1,1780.7,6.177338]
[1743764994239,5.98576852,1781.1,1780.9,1.5345]
[1743764994573,11.60029852,1781.1,1780.7,0.561598]
[1743764994765,11.60029852,1781.1,1780.6,7.24344]
[1743764994930,5.61507,1781.0,1780.6,1.6274]
[1743764995260,5.98576852,1781.1,1780.7,0.05615114]
[1743764995560,5.61483,1781.0,1780.6,7.24343]
[1743764995969,5.61483,1781.0,1780.6,1.6274]
[1743764996280,5.61534,1780.9,1780.4,5.61665]
[1743764996489,6.187,1780.8,1780.4,11.23315]
[1743764996655,11.80246,1780.8,1780.4,11.23315]
[1743764996849,11.80246,1780.8,1780.5,5.61635]
[1743764997050,6.187,1780.8,1780.3,4.5588]
[1743764997252,13.15420852,1781.0,1780.6,5.61586]
[1743764997484,6.187,1780.9,1780.5,5.61639]
[1743764997689,11.80232,1780.9,1780.5,5.61623]
[1743764998789,6.187,1780.9,1780.4,0.45588]
[1743764998975,6.187,1780.9,1780.8,5.61545]
[1743764999177,6.187,1780.9,1780.4,6.07234]
[1743764999359,6.187,1780.9,1780.7,5.61563]
[1743764999561,6.187,1780.9,1780.6,11.23216]
[1743764999876,5.98576852,1781.0,1780.7,5.61567]
[1743765000069,6.187,1781.0,1780.8,5.61517]
[1743765000595,5.6143,1781.2,1780.8,5.61517]
[1743765000893,6.187,1781.1,1780.8,11.23045]
[1743765001079,6.187,1781.1,1780.8,6.888675]
[1743765001278,6.187,1781.1,1780.8,1.273505]
[1743765001469,6.187,1781.1,1780.7,7.12017]
[1743765001674,5.61503,1781.0,1780.6,5.61603]
[1743765001871,11.80167,1781.1,1780.7,11.23139]
[1743765002062,11.80167,1781.1,1780.7,5.61564]
[1743765002263,11.80167,1781.1,1780.7,5.61562]
[1743765002472,1.5082,1781.3,1780.7,5.61562]
[1743765002473,1.5082,1781.3,1780.8,5.61545]
[1743765002673,6.187,1781.2,1780.9,5.61512]
[1743765002894,6.187,1781.2,1780.9,11.2301]
[1743765003088,6.187,1781.2,1781.0,5.61468]
[1743765003268,6.187,1781.2,1780.8,5.61541]
[1743765003461,11.8013,1781.2,1780.8,6.2329572]
[1743765003793,5.61466,1781.1,1780.8,0.6176972]
[1743765003957,11.80124,1781.2,1780.8,11.23065]
[1743765004158,6.187,1781.2,1780.9,5.61495]
[1743765004417,5.98576852,1781.4,1781.0,1.5778]
[1743765004618,6.187,1781.2,1781.1,5.61421]
[1743765004758,6.187,1781.2,1781.1,6.3390258]
[1743765005288,6.187,1781.2,1781.0,7.19245]
[1743765005503,6.187,1781.2,1781.0,1.5778]
[1743765005793,11.80121,1781.2,1780.9,5.61509]
[1743765006292,6.187,1781.2,1780.9,5.61499]
[1743765006590,6.187,1781.2,1780.7,1.5382]
[1743765006591,6.187,1781.2,1781.1,5.6145]
[1743765006795,11.80122,1781.2,1780.9,5.61512]
[1743765007293,6.187,1781.2,1780.7,1.5382]
[1743765007492,11.59942852,1781.4,1781.1,5.61438]
[1743765007708,11.80089,1781.3,1781.0,5.61477]
[1743765008061,6.187,1781.3,1781.0,5.61466]
[1743765008256,11.80098,1781.3,1781.0,5.61466]
[1743765008709,6.187,1781.3,1780.8,5.61539]
[1743765008915,6.187,1781.3,1780.9,5.615]
[1743765009215,5.61421,1781.2,1780.9,5.615]
[1743765009396,5.6148,1781.1,1780.7,7.15392]
[1743765009571,0.55,1781.2,1780.7,1.5382]
[1743765009765,5.61489,1781.0,1780.7,7.15388]
[1743765009959,5.61489,1781.0,1780.7,5.61568]
[1743765010165,7.50176852,1781.1,1780.8,5.61515]
[1743765010509,13.11645852,1781.1,1780.7,11.23125]
[1743765010808,5.98576852,1781.1,1781.0,5.61482]
[1743765011176,5.98576852,1781.1,1780.9,5.61513]
[1743765011376,5.98576852,1781.1,1781.0,5.61482]
[1743765011915,5.98576852,1781.1,1780.9,5.61502]
[1743765012217,5.98576852,1781.1,1780.8,5.61535]
[1743765012369,5.98576852,1781.1,1780.9,5.615]
[1743765013071,5.98576852,1781.1,1781.0,5.61482]
[1743765013723,6.187,1781.3,1781.2,5.61419]
[1743765014098,6.087,1781.3,1780.6,1.5279]
[1743765014279,5.61511,1781.0,1780.6,7.14393]
[1743765014474,11.80114,1780.9,1780.6,7.14393]
[1743765014700,11.80114,1780.9,1780.5,5.61625]
[1743765014914,7.11751,1780.8,1780.5,5.61634]
[1743765015418,17.78695852,1780.9,1780.6,5.61597]
[1743765015935,12.17176852,1780.9,1780.4,5.61651]
[1743765016095,5.61548,1780.8,1780.5,5.61632]
[1743765016622,5.61548,1780.8,1780.4,5.61671]
[1743765016623,5.61594,1780.7,1780.4,5.61671]
[1743765017118,5.61551,1780.8,1780.4,5.61661]
[1743765017428,17.78693852,1780.9,1780.5,5.61617]
[1743765017575,17.78693852,1780.9,1780.6,5.61597]
[1743765018234,12.17176852,1780.9,1780.6,5.61595]
[1743765018440,5.98576852,1780.9,1780.8,5.61545]
[1743765018799,5.98576852,1780.9,1780.8,7.18075]
[1743765018997,5.98576852,1780.9,1780.8,7.456651]
[1743765019847,6.186,1781.1,1780.8,7.456651]
[1743765019848,6.186,1781.1,1781.0,5.61482]
[1743765020139,6.186,1781.1,1780.9,11.23001]
[1743765020339,6.186,1781.1,1780.8,7.456641]
[1743765020520,6.186,1781.1,1780.8,5.61544]
[1743765020709,13.3702,1781.1,1780.7,11.23133]
[1743765020909,1.5696,1781.3,1781.0,5.61482]
[1743765021095,5.98576852,1781.4,1781.3,5.61387]
[1743765021300,26.99,1781.9,1781.0,5.41970018]
[1743765021301,12.17176852,1781.7,1781.0,5.36355675]
[1743765021500,5.61311,1781.6,1781.1,6.15082568]
[1743765021695,12.17176852,1781.7,1781.1,6.15082568]
[1743765021696,1.635,1781.5,1781.1,6.15082568]
[1743765022024,5.61393,1781.3,1780.9,5.61511]
[1743765022224,7.23389,1781.1,1780.7,5.61565]
[1743765022398,7.60496852,1781.1,1780.6,1.61195357]
[1743765022601,7.60496852,1781.1,1780.8,5.61525]
[1743765022904,5.98576852,1781.1,1780.7,5.61576]
[1743765023244,6.185,1781.0,1780.9,5.61502]
[1743765023596,6.185,1781.0,1780.8,6.176856]
[1743765023822,6.185,1781.0,1780.9,5.61513]
[1743765024028,5.98576852,1781.1,1781.0,5.61482]
[1743765025531,5.98576852,1781.6,1781.4,5.61341]
[1743765025716,5.98576852,1781.6,1781.5,5.61324]
[1743765025717,12.17076852,1781.6,1781.5,5.61324]
[1743765026092,12.17076852,1781.6,1781.5,6.735905]
[1743765026702,0.05,1781.9,1781.8,5.6123]
[1743765026934,0.05,1781.9,1781.8,7.2467]
[1743765027244,0.05,1781.9,1781.8,5.6123]
[1743765028217,0.05,1781.9,1781.8,7.118]
[1743765028400,0.05,1781.9,1781.8,6.885348]
[1743765028602,0.05,1781.9,1781.7,5.61248]
[1743765028799,0.05,1781.9,1781.5,7.11892]
[1743765029014,23.39577852,1781.8,1781.4,5.61338]
[1743765029433,12.17076852,1781.8,1781.2,1.6323]
[1743765029599,12.17076852,1781.8,1781.5,5.61309]
[1743765029805,17.78321852,1781.8,1781.4,5.61356]
[1743765030015,23.39575852,1781.8,1781.4,5.61356]
[1743765030308,23.39575852,1781.8,1781.0,9.28747327]
[1743765030309,5.61326,1781.5,1781.1,5.6145]
[1743765030618,6.183,1781.4,1781.1,11.22866]
[1743765030931,6.183,1781.4,1781.3,5.61387]
[1743765031423,6.183,1781.4,1781.3,6.736663]
[1743765031799,6.4035022,1781.4,1781.3,6.736663]
[1743765032639,6.4035022,1781.4,1781.3,5.61387]
[1743765033483,0.2205022,1781.4,1781.3,7.21287]
[1743765033783,0.2205022,1781.4,1781.3,7.26900048]
[1743765034138,0.2205022,1781.4,1781.3,7.21287]
[1743765034575,6.183,1781.7,1781.6,5.61293]
[1743765034990,5.61294,1781.6,1781.0,1.5295]
[1743765035156,5.61294,1781.6,1781.1,5.6145]
[1743765035157,1.5477,1781.5,1781.1,5.6145]
[1743765035343,5.98576852,1781.6,1781.5,5.61324]
[1743765035551,0.05,1781.9,1781.5,7.14914]
[1743765035737,0.05,1781.9,1781.7,5.61261]
[1743765035943,0.05,1781.9,1781.8,5.6123]
[1743765037479,0.05,1781.9,1781.8,8.6123]
[1743765039688,0.05,1781.9,1781.8,5.6123]
[1743765040256,0.05,1781.9,1781.7,6.735014]
[1743765040460,0.05,1781.9,1781.8,5.6123]
[1743765040667,5.66216,1781.9,1781.5,5.61324]
[1743765040971,5.61316,1781.6,1781.2,5.61414]
[1743765041287,7.7636,1781.5,1781.2,5.61414]
[1743765041586,7.7636,1781.5,1781.2,11.22825]
[1743765041773,6.182,1781.5,1781.4,5.61356]
[1743765042484,6.182,1781.5,1781.3,5.61374]
[1743765042787,6.3658214,1781.5,1781.3,5.61374]
[1743765043092,6.3658214,1781.5,1781.1,7.22812]
[1743765043389,7.14008,1781.3,1781.0,5.61478]
[1743765043686,0.17656491,1781.2,1781.0,5.61478]
[1743765043850,6.181,1781.1,1781.0,8.61478]
[1743765044185,11.97080204,1781.1,1780.6,10.0]
[1743765044398,5.61519,1780.9,1780.6,5.61596]
[1743765044541,7.17429,1780.9,1780.5,5.61634]
[1743765044743,12.78963,1780.9,1780.5,5.61625]
[1743765044969,5.79291419,1780.8,1780.5,5.61625]
[1743765045193,6.181,1780.7,1780.4,5.61667]
[1743765045492,6.35790146,1780.7,1780.5,5.61638]
[1743765045649,6.35790146,1780.7,1780.4,5.61658]
[1743765045852,6.35790146,1780.7,1780.4,11.23311]
[1743765046059,6.35790146,1780.7,1780.4,5.61653]
[1743765046275,6.35790146,1780.7,1780.0,3.67295327]
[1743765046474,7.1166,1780.5,1780.2,5.61716]
[1743765046678,7.1166,1780.5,1780.1,5.61756]
[1743765046864,0.17816455,1780.4,1780.1,5.61756]
[1743765047088,6.181,1780.3,1780.1,6.741112]
[1743765047395,0.17255846,1780.2,1779.8,5.6184]
[1743765047555,11.40772846,1780.2,1779.8,5.6184]
[1743765047754,5.79012846,1780.2,1779.8,5.6184]
[1743765048103,11.40777846,1780.2,1779.8,5.6184]
[1743765048484,5.79012846,1780.2,1779.8,5.6184]
[1743765048806,5.78996846,1780.2,1779.8,12.360609]
[1743765049099,0.55,1780.0,1779.6,7.1385]
[1743765049401,13.53459707,1779.9,1779.5,5.61954]
[1743765049563,5.61863,1779.8,1779.4,11.23947]
[1743765049767,5.78954356,1779.8,1779.4,5.61967]
[1743765050015,5.78954356,1779.8,1779.5,0.561967]
[1743765050166,11.40842356,1779.8,1779.5,0.561967]
[1743765050495,6.16905,1779.7,1779.3,5.62018]
[1743765050691,0.16682948,1779.6,1779.2,5.62049]
[1743765050999,6.183,1779.5,1779.4,5.61987]
[1743765051185,0.16640317,1779.5,1779.4,11.23944]
[1743765051396,0.16640317,1779.5,1779.4,14.000584]
[1743765051595,0.16640317,1779.5,1779.4,20.67353727]
[1743765051596,5.82e-06,1779.5,1779.4,20.67353727]
[1743765051906,6.183,1780.0,1779.7,5.61877]
[1743765052065,0.12488629,1779.9,1779.8,5.61848]
[1743765054111,0.12488629,1779.9,1779.6,5.61922]
[1743765054403,0.12488629,1779.9,1779.6,6.180912]
[1743765054563,0.12488629,1779.9,1779.8,5.6186]
[1743765056327,0.12488629,1779.9,1779.7,5.61879]
[1743765056507,7.23562,1779.8,1779.3,5.62004]
[1743765056824,0.12291735,1779.7,1779.3,5.62004]
[1743765057027,11.36124735,1779.7,1779.2,15.62048]
[1743765057184,5.61924,1779.6,1779.2,17.47903611]
[1743765057383,11.80356,1779.5,1779.1,5.67063]
[1743765057617,11.92603617,1779.5,1779.1,11.29131]
[1743765057998,6.30647617,1779.5,1779.2,5.62048]
[1743765058329,6.30647617,1779.5,1779.1,5.67063]